[Event "*** Titled Tuesday 3|2 Blitz"]
[Site "Chess.com"]
[Date "2015.08.04"]
[Round "1"]
[White "chessking2151"]
[Black "Iball95"]
[Result "1-0"]
[WhiteElo "2009"]
[BlackElo "2342"]
[TimeControl "180+2"]
[EndTime "11:36:16 PDT"]
[Termination "chessking2151 won - game abandoned"]

1. e4 {[%clk 0:03:01.9]} 1... c5 {[%clk 0:02:59.9]} 2. c3 {[%clk 0:03:02.1]}
2... g6 {[%clk 0:02:59.9]} 3. d4 {[%clk 0:03:02.4]} 3... cxd4 {[%clk 0:03:00.1]}
4. cxd4 {[%clk 0:03:04.3]} 4... d5 {[%clk 0:03:00.6]} 5. exd5 {[%clk 0:03:06.2]}
5... Nf6 {[%clk 0:03:00.4]} 6. Bb5+ {[%clk 0:03:06.2]} 6... Nbd7 {[%clk
0:02:58]} 7. d6 {[%clk 0:03:06.7]} 7... exd6 {[%clk 0:02:58.3]} 8. Qe2+ {[%clk
0:03:06.9]} 8... Qe7 {[%clk 0:02:57.4]} 9. Qxe7+ {[%clk 0:02:55.1]} 9... Kxe7
{[%clk 0:02:52.6]} 10. Nf3 {[%clk 0:02:53.3]} 10... Nb6 {[%clk 0:02:50.6]} 11.
Bf4 {[%clk 0:02:49.7]} 11... Be6 {[%clk 0:02:49.2]} 12. O-O {[%clk 0:02:47.7]}
12... a6 {[%clk 0:02:49.7]} 13. Bd3 {[%clk 0:02:48.3]} 13... Bg7 {[%clk
0:02:50.4]} 14. Nc3 {[%clk 0:02:48.6]} 14... Nfd5 {[%clk 0:02:43.4]} 15. Nxd5+
{[%clk 0:02:48.6]} 15... Nxd5 {[%clk 0:02:43.8]} 16. Bg3 {[%clk 0:02:49.5]}
16... Rac8 {[%clk 0:02:43.1]} 17. a3 {[%clk 0:02:45.9]} 17... Kd7 {[%clk
0:02:41]} 18. Rac1 {[%clk 0:02:46.3]} 18... Bh6 {[%clk 0:02:35.6]} 19. Rb1
{[%clk 0:02:42.4]} 19... Bg7 {[%clk 0:02:30.6]} 20. Rbc1 {[%clk 0:02:42.3]}
20... Nb6 {[%clk 0:02:26.1]} 21. Be4 {[%clk 0:02:33.6]} 21... Bd5 {[%clk
0:02:14.8]} 22. Bxd5 {[%clk 0:02:22.7]} 22... Nxd5 {[%clk 0:02:16.7]} 23. Rfd1
{[%clk 0:01:58.8]} 23... h6 {[%clk 0:02:15.2]} 24. Kf1 {[%clk 0:01:59]} 24...
Rhe8 {[%clk 0:02:12.8]} 25. Re1 {[%clk 0:01:49.8]} 25... Rxe1+ {[%clk
0:02:11.4]} 26. Rxe1 {[%clk 0:01:49.3]} 26... Rc2 {[%clk 0:02:10.3]} 27. Re2
{[%clk 0:01:49.7]} 27... Rc1+ {[%clk 0:02:09.8]} 28. Re1 {[%clk 0:01:49.5]}
28... Rc4 {[%clk 0:02:10.3]} 29. Rd1 {[%clk 0:01:49.8]} 29... Rc2 {[%clk
0:02:09.8]} 30. b4 {[%clk 0:01:37.4]} 30... Nc3 {[%clk 0:02:10.8]} 31. Re1
{[%clk 0:01:38.2]} 31... Nb5 {[%clk 0:02:11]} 32. a4 {[%clk 0:01:22.5]} 1-0

[Event "*** Titled Tuesday 3|2 Blitz"]
[Site "Chess.com"]
[Date "2015.08.04"]
[Round "1"]
[White "Sunil"]
[Black "eugeniusjr"]
[Result "0-1"]
[WhiteElo "2088"]
[BlackElo "1954"]
[TimeControl "180+2"]
[EndTime "11:36:39 PDT"]
[Termination "eugeniusjr won by checkmate"]

1. e4 {[%clk 0:02:57.9]} 1... c5 {[%clk 0:02:54.5]} 2. Nc3 {[%clk 0:02:58.2]}
2... g6 {[%clk 0:02:55.8]} 3. f4 {[%clk 0:02:59.3]} 3... Bg7 {[%clk 0:02:56.2]}
4. Nf3 {[%clk 0:03:00.4]} 4... Nc6 {[%clk 0:02:56.9]} 5. Bc4 {[%clk 0:03:00.8]}
5... d6 {[%clk 0:02:56.3]} 6. Bb5 {[%clk 0:03:00.4]} 6... Bd7 {[%clk 0:02:55.9]}
7. Bxc6 {[%clk 0:03:00.8]} 7... Bxc6 {[%clk 0:02:56.5]} 8. d3 {[%clk 0:03:02.7]}
8... e6 {[%clk 0:02:55.1]} 9. O-O {[%clk 0:03:03.4]} 9... Ne7 {[%clk 0:02:56.6]}
10. Qe1 {[%clk 0:03:03.1]} 10... O-O {[%clk 0:02:57]} 11. Qh4 {[%clk 0:03:03.6]}
11... b5 {[%clk 0:02:55]} 12. g4 {[%clk 0:03:01.8]} 12... b4 {[%clk 0:02:52.7]}
13. Ne2 {[%clk 0:03:02.3]} 13... f5 {[%clk 0:02:49.9]} 14. Ng5 {[%clk
0:03:01.3]} 14... h6 {[%clk 0:02:37.1]} 15. Nxe6 {[%clk 0:03:02.1]} 15... Qd7
{[%clk 0:02:35.2]} 16. Nxf8 {[%clk 0:03:02.6]} 16... Rxf8 {[%clk 0:02:37.1]} 17.
Rb1 {[%clk 0:02:57.1]} 17... fxe4 {[%clk 0:02:32.3]} 18. f5 {[%clk 0:02:45.8]}
18... exd3 {[%clk 0:02:25.9]} 19. cxd3 {[%clk 0:02:43.5]} 19... g5 {[%clk
0:02:12.6]} 20. Qh3 {[%clk 0:02:39.1]} 20... Nd5 {[%clk 0:02:03.6]} 21. Bd2
{[%clk 0:02:31.9]} 21... Re8 {[%clk 0:01:53.5]} 22. Rf2 {[%clk 0:02:25.6]} 22...
Bb7 {[%clk 0:01:40.2]} 23. Ng3 {[%clk 0:01:57.4]} 23... Qc6 {[%clk 0:01:22.3]}
24. Ne4 {[%clk 0:01:54.2]} 24... Nf6 {[%clk 0:01:15.8]} 25. Qf3 {[%clk
0:01:21.6]} 25... Nxe4 {[%clk 0:01:09.5]} 26. dxe4 {[%clk 0:01:22.7]} 26... Bd4
{[%clk 0:01:03.7]} 27. Rf1 {[%clk 0:01:10.6]} 27... Rxe4 {[%clk 0:00:59.2]} 28.
f6 {[%clk 0:01:10]} 28... Rxg4+ {[%clk 0:00:53]} 29. Kh1 {[%clk 0:01:08.8]}
29... Qxf3+ {[%clk 0:00:52.1]} 30. Rxf3 {[%clk 0:01:06]} 30... Bxf3+ {[%clk
0:00:52.3]} 31. Rxf3 {[%clk 0:01:02.7]} 31... Rg1# {[%clk 0:00:52.9]} 0-1

[Event "*** Titled Tuesday 3|2 Blitz"]
[Site "Chess.com"]
[Date "2015.08.04"]
[Round "1"]
[White "Lying-Ted"]
[Black "GMG"]
[Result "0-1"]
[WhiteElo "2009"]
[BlackElo "2391"]
[TimeControl "180+2"]
[EndTime "11:36:53 PDT"]
[Termination "GMG won by resignation"]

1. e4 {[%clk 0:03:00.6]} 1... g6 {[%clk 0:02:58.1]} 2. d4 {[%clk 0:02:59.9]}
2... Bg7 {[%clk 0:02:59.6]} 3. Nc3 {[%clk 0:02:58.2]} 3... c6 {[%clk 0:03:00.7]}
4. h3 {[%clk 0:02:57]} 4... d6 {[%clk 0:03:01.2]} 5. Nf3 {[%clk 0:02:54.1]} 5...
Nf6 {[%clk 0:02:59.4]} 6. Bd3 {[%clk 0:02:52.9]} 6... Nbd7 {[%clk 0:02:57.5]} 7.
O-O {[%clk 0:02:51]} 7... e5 {[%clk 0:02:57.5]} 8. Be3 {[%clk 0:02:50]} 8... O-O
{[%clk 0:02:57.5]} 9. a4 {[%clk 0:02:49.3]} 9... b6 {[%clk 0:02:56]} 10. Re1
{[%clk 0:02:42.2]} 10... a6 {[%clk 0:02:54.8]} 11. d5 {[%clk 0:02:36.9]} 11...
cxd5 {[%clk 0:02:52.9]} 12. Nxd5 {[%clk 0:02:33.3]} 12... Nxd5 {[%clk
0:02:53.7]} 13. exd5 {[%clk 0:02:35.2]} 13... f5 {[%clk 0:02:53.1]} 14. Bf1
{[%clk 0:02:30.8]} 14... h6 {[%clk 0:02:38.6]} 15. c4 {[%clk 0:02:21]} 15... a5
{[%clk 0:02:38.3]} 16. Rb1 {[%clk 0:02:20.2]} 16... Nc5 {[%clk 0:02:38.1]} 17.
b4 {[%clk 0:02:18.6]} 17... axb4 {[%clk 0:02:40]} 18. Rxb4 {[%clk 0:02:18.6]}
18... Bd7 {[%clk 0:02:41]} 19. Qb1 {[%clk 0:01:49.4]} 19... f4 {[%clk
0:02:19.9]} 20. Bxc5 {[%clk 0:01:32.2]} 20... bxc5 {[%clk 0:02:21.8]} 21. Rb7
{[%clk 0:01:26.4]} 21... Bf5 {[%clk 0:02:22.7]} 22. Qb5 {[%clk 0:01:24.9]} 22...
e4 {[%clk 0:02:13.6]} 23. Nd2 {[%clk 0:01:24.7]} 23... e3 {[%clk 0:02:13.2]} 24.
Nf3 {[%clk 0:01:19.2]} 24... Bc3 {[%clk 0:01:59.6]} 25. Rc1 {[%clk 0:01:12.6]}
25... Bb4 {[%clk 0:01:52.7]} 26. Qc6 {[%clk 0:00:41.8]} 26... Rc8 {[%clk
0:01:47.2]} 27. Qb5 {[%clk 0:00:40.4]} 27... Qf6 {[%clk 0:01:43.7]} 28. Rb6
{[%clk 0:00:39.5]} 28... exf2+ {[%clk 0:01:41.2]} 29. Kxf2 {[%clk 0:00:39.9]}
29... Qb2+ {[%clk 0:01:39.2]} 30. Kg1 {[%clk 0:00:37.7]} 30... Qxc1 {[%clk
0:01:38.9]} 31. Rxd6 {[%clk 0:00:39.1]} 31... Bd3 {[%clk 0:01:39]} 32. Nh2
{[%clk 0:00:37.6]} 32... f3 {[%clk 0:01:33.4]} 33. gxf3 {[%clk 0:00:34.4]} 33...
Rxf3 {[%clk 0:01:24.8]} 34. Rxg6+ {[%clk 0:00:32.7]} 34... Bxg6 {[%clk
0:01:24.3]} 35. Nxf3 {[%clk 0:00:33.9]} 35... Qe3+ {[%clk 0:01:24.9]} 36. Kg2
{[%clk 0:00:34.6]} 36... Be4 {[%clk 0:01:23.5]} 0-1

[Event "*** Titled Tuesday 3|2 Blitz"]
[Site "Chess.com"]
[Date "2015.08.04"]
[Round "1"]
[White "Colombiano07"]
[Black "Gergo85"]
[Result "1-0"]
[WhiteElo "1963"]
[BlackElo "2328"]
[TimeControl "180+2"]
[EndTime "11:37:34 PDT"]
[Termination "Colombiano07 won on time"]

1. e4 {[%clk 0:02:55.2]} 1... d5 {[%clk 0:02:57.6]} 2. d4 {[%clk 0:02:54.1]}
2... dxe4 {[%clk 0:02:52.8]} 3. Nc3 {[%clk 0:02:54.8]} 3... Nf6 {[%clk
0:02:52.9]} 4. Bg5 {[%clk 0:02:55.2]} 4... g6 {[%clk 0:02:44.4]} 5. Bxf6 {[%clk
0:02:54.6]} 5... exf6 {[%clk 0:02:45.3]} 6. Nxe4 {[%clk 0:02:56.5]} 6... Bg7
{[%clk 0:02:40]} 7. Nf3 {[%clk 0:02:53.8]} 7... O-O {[%clk 0:02:38.5]} 8. Bd3
{[%clk 0:02:48.4]} 8... f5 {[%clk 0:02:38.2]} 9. Ng3 {[%clk 0:02:32.2]} 9...
Re8+ {[%clk 0:02:08.1]} 10. Ne2 {[%clk 0:02:28.8]} 10... Bxd4 {[%clk 0:01:46.2]}
11. Nxd4 {[%clk 0:02:26.8]} 11... Qxd4 {[%clk 0:01:46.6]} 12. c3 {[%clk
0:02:26.2]} 12... Qf6 {[%clk 0:01:40.6]} 13. O-O {[%clk 0:02:26.2]} 13... Nc6
{[%clk 0:01:35.8]} 14. Re1 {[%clk 0:02:27.3]} 14... Be6 {[%clk 0:01:34.6]} 15.
Bb5 {[%clk 0:02:25.8]} 15... Rad8 {[%clk 0:01:33.8]} 16. Qa4 {[%clk 0:02:26.1]}
16... Bd7 {[%clk 0:01:22.9]} 17. Bxc6 {[%clk 0:02:26.4]} 17... Bxc6 {[%clk
0:01:20.9]} 18. Qxa7 {[%clk 0:02:27.4]} 18... Rd2 {[%clk 0:00:54.7]} 19. Nd4
{[%clk 0:02:23.7]} 19... Rxe1+ {[%clk 0:00:51.8]} 20. Rxe1 {[%clk 0:02:25.6]}
20... Be4 {[%clk 0:00:37.8]} 21. b4 {[%clk 0:01:24.4]} 21... Qg5 {[%clk
0:00:27.5]} 22. g3 {[%clk 0:01:25.2]} 22... h5 {[%clk 0:00:15.6]} 23. Qb8+
{[%clk 0:01:25.1]} 23... Kg7 {[%clk 0:00:14.9]} 24. Qxc7 {[%clk 0:01:27]} 24...
Qf6 {[%clk 0:00:11.2]} 25. a4 {[%clk 0:01:12.5]} 25... h4 {[%clk 0:00:10.7]} 26.
Qf4 {[%clk 0:01:06.9]} 26... h3 {[%clk 0:00:08.4]} 27. Qxd2 {[%clk 0:01:06.2]}
27... Qd6 {[%clk 0:00:07.3]} 28. Nxf5+ {[%clk 0:01:02.3]} 1-0

[Event "*** Titled Tuesday 3|2 Blitz"]
[Site "Chess.com"]
[Date "2015.08.04"]
[Round "1"]
[White "mat_kolosowski"]
[Black "FMCouch"]
[Result "1-0"]
[WhiteElo "2498"]
[BlackElo "2124"]
[TimeControl "180+2"]
[EndTime "11:38:03 PDT"]
[Termination "mat_kolosowski won by resignation"]

1. d4 {[%clk 0:03:01.9]} 1... d5 {[%clk 0:03:00.6]} 2. c4 {[%clk 0:03:03.3]}
2... c6 {[%clk 0:03:02]} 3. Nf3 {[%clk 0:03:04.8]} 3... Nf6 {[%clk 0:03:03.5]}
4. Nc3 {[%clk 0:03:06.3]} 4... dxc4 {[%clk 0:03:04.1]} 5. a4 {[%clk 0:03:06.7]}
5... Bf5 {[%clk 0:03:05]} 6. Nh4 {[%clk 0:03:07.1]} 6... Bg6 {[%clk 0:03:02.5]}
7. Nxg6 {[%clk 0:03:07.1]} 7... hxg6 {[%clk 0:03:03.4]} 8. e3 {[%clk 0:03:09]}
8... Nbd7 {[%clk 0:03:04.2]} 9. Bxc4 {[%clk 0:03:10.1]} 9... e5 {[%clk
0:03:04.1]} 10. Qb3 {[%clk 0:03:04.8]} 10... Qe7 {[%clk 0:03:02.1]} 11. Qxb7
{[%clk 0:02:58.4]} 11... Rb8 {[%clk 0:03:02.8]} 12. Qxa7 {[%clk 0:02:57.4]}
12... exd4 {[%clk 0:03:02.6]} 13. Qxd4 {[%clk 0:02:58.8]} 13... Ne5 {[%clk
0:03:01.9]} 14. Be2 {[%clk 0:02:58.5]} 14... Rd8 {[%clk 0:03:01.4]} 15. Qb6
{[%clk 0:02:54.1]} 15... Qe6 {[%clk 0:02:43.3]} 16. a5 {[%clk 0:02:46.3]} 16...
Bd6 {[%clk 0:02:38.2]} 17. a6 {[%clk 0:02:44]} 17... O-O {[%clk 0:02:28.7]} 18.
a7 {[%clk 0:02:43.9]} 18... Nd5 {[%clk 0:02:15.7]} 19. Nxd5 {[%clk 0:02:41.4]}
19... cxd5 {[%clk 0:02:16.5]} 20. Qd4 {[%clk 0:02:31.3]} 20... Rc8 {[%clk
0:02:07.6]} 21. O-O {[%clk 0:02:30.6]} 21... Bc5 {[%clk 0:02:08.1]} 22. Qf4
{[%clk 0:02:23.5]} 22... Ra8 {[%clk 0:02:06.7]} 23. Ra6 {[%clk 0:02:24.1]} 23...
Qe7 {[%clk 0:02:03.8]} 24. b4 {[%clk 0:02:20.8]} 24... Bxa7 {[%clk 0:01:56.2]}
25. Bb2 {[%clk 0:02:21.6]} 25... Nc4 {[%clk 0:01:41.8]} 26. Bxc4 {[%clk
0:02:11.8]} 26... dxc4 {[%clk 0:01:42.3]} 27. Qxc4 {[%clk 0:02:12.5]} 27... Rfc8
{[%clk 0:01:43.7]} 28. Qb5 {[%clk 0:01:47.6]} 28... Rab8 {[%clk 0:01:42.1]} 29.
Qa5 {[%clk 0:01:38.3]} 29... Qxb4 {[%clk 0:01:39.4]} 30. Qxb4 {[%clk 0:01:17.2]}
30... Rxb4 {[%clk 0:01:41.3]} 31. Bxg7 {[%clk 0:01:15.6]} 31... Bxe3 {[%clk
0:01:35.1]} 32. fxe3 {[%clk 0:01:17.5]} 32... Kxg7 {[%clk 0:01:34.7]} 33. Ra7
{[%clk 0:01:19.4]} 33... Rf8 {[%clk 0:01:35.4]} 34. h3 {[%clk 0:01:20.3]} 34...
Re4 {[%clk 0:01:35.7]} 35. Rf3 {[%clk 0:01:21.6]} 35... Re6 {[%clk 0:01:36.4]}
36. Kf2 {[%clk 0:01:22.9]} 36... Rf6 {[%clk 0:01:36.5]} 37. e4 {[%clk
0:01:23.8]} 37... Rb8 {[%clk 0:01:36.7]} 38. e5 {[%clk 0:01:21.6]} 38... Rb2+
{[%clk 0:01:37.1]} 39. Kg3 {[%clk 0:01:22.5]} 39... Rxf3+ {[%clk 0:01:37.2]} 40.
gxf3 {[%clk 0:01:24.4]} 40... Re2 {[%clk 0:01:37.5]} 41. f4 {[%clk 0:01:25.1]}
41... Re3+ {[%clk 0:01:38.3]} 42. Kg4 {[%clk 0:01:26.4]} 42... Re1 {[%clk
0:01:38.5]} 43. h4 {[%clk 0:01:26.9]} 43... Re2 {[%clk 0:01:37.2]} 44. h5 {[%clk
0:01:25.2]} 44... gxh5+ {[%clk 0:01:36.5]} 45. Kxh5 {[%clk 0:01:26.1]} 45... Re1
{[%clk 0:01:37.2]} 46. Kg5 {[%clk 0:01:27]} 46... Rg1+ {[%clk 0:01:36.8]} 47.
Kf5 {[%clk 0:01:28.2]} 47... Re1 {[%clk 0:01:38.2]} 48. Re7 {[%clk 0:01:29]}
48... Kf8 {[%clk 0:01:37.9]} 49. Kf6 {[%clk 0:01:29.1]} 49... Re4 {[%clk
0:01:37.3]} 50. Rxf7+ {[%clk 0:01:29.9]} 50... Ke8 {[%clk 0:01:38]} 51. Ke6
{[%clk 0:01:18.1]} 51... Ra4 {[%clk 0:01:36.5]} 52. Re7+ {[%clk 0:01:18.7]}
52... Kf8 {[%clk 0:01:36.6]} 53. Rf7+ {[%clk 0:01:19.9]} 53... Ke8 {[%clk
0:01:37.4]} 54. Rf6 {[%clk 0:01:21.1]} 54... Ra6+ {[%clk 0:01:36.9]} 55. Kf5
{[%clk 0:01:22.3]} 55... Ra4 {[%clk 0:01:37]} 56. Rb6 {[%clk 0:01:22.6]} 56...
Kf7 {[%clk 0:01:36.1]} 57. Rb7+ {[%clk 0:01:23.9]} 57... Kf8 {[%clk 0:01:37]}
58. Kg5 {[%clk 0:01:23.2]} 58... Ke8 {[%clk 0:01:38.2]} 59. f5 {[%clk
0:01:24.2]} 59... Ra6 {[%clk 0:01:38.2]} 60. e6 {[%clk 0:01:24.9]} 60... Ra8
{[%clk 0:01:34.6]} 61. Kf6 {[%clk 0:01:26]} 61... Kf8 {[%clk 0:01:36.1]} 62.
Rf7+ {[%clk 0:01:26.3]} 62... Ke8 {[%clk 0:01:35.2]} 63. Rh7 {[%clk 0:01:27.1]}
1-0

[Event "*** Titled Tuesday 3|2 Blitz"]
[Site "Chess.com"]
[Date "2015.08.04"]
[Round "1"]
[White "Keranke"]
[Black "Quinten94"]
[Result "1-0"]
[WhiteElo "2552"]
[BlackElo "2183"]
[TimeControl "180+2"]
[EndTime "11:38:16 PDT"]
[Termination "Keranke won by resignation"]

1. d4 {[%clk 0:03:01.5]} 1... Nf6 {[%clk 0:02:57.8]} 2. c4 {[%clk 0:02:58.4]}
2... c6 {[%clk 0:02:57.4]} 3. Nc3 {[%clk 0:02:54.4]} 3... d5 {[%clk 0:02:59]} 4.
Nf3 {[%clk 0:02:55.5]} 4... dxc4 {[%clk 0:02:58.5]} 5. e4 {[%clk 0:02:54.5]}
5... b5 {[%clk 0:02:58.8]} 6. e5 {[%clk 0:02:55.8]} 6... Nd5 {[%clk 0:02:59.8]}
7. a4 {[%clk 0:02:56.3]} 7... e6 {[%clk 0:03:00.8]} 8. axb5 {[%clk 0:02:57.3]}
8... Nxc3 {[%clk 0:03:01.6]} 9. bxc3 {[%clk 0:02:59.2]} 9... cxb5 {[%clk
0:03:03.1]} 10. Ng5 {[%clk 0:03:00.9]} 10... Be7 {[%clk 0:03:03.6]} 11. Nxf7
{[%clk 0:02:57.1]} 11... Kxf7 {[%clk 0:03:03.8]} 12. Qf3+ {[%clk 0:02:58.6]}
12... Kg8 {[%clk 0:02:39.9]} 13. Qxa8 {[%clk 0:02:55]} 13... Bd7 {[%clk
0:02:29.9]} 14. Rxa7 {[%clk 0:02:52.3]} 14... Bc6 {[%clk 0:02:29.7]} 15. Rb7
{[%clk 0:02:44.6]} 15... Nd7 {[%clk 0:01:40.5]} 16. Qxd8+ {[%clk 0:02:38.5]}
16... Bxd8 {[%clk 0:01:41.4]} 17. Ra7 {[%clk 0:02:40.1]} 17... Kf7 {[%clk
0:01:40.2]} 18. f3 {[%clk 0:02:22.6]} 18... Bb6 {[%clk 0:01:38.3]} 19. Ra1
{[%clk 0:02:22.2]} 19... Bd5 {[%clk 0:01:33.1]} 20. Rb1 {[%clk 0:02:20]} 20...
b4 {[%clk 0:01:27.9]} 21. Rxb4 {[%clk 0:02:04.4]} 21... Ba5 {[%clk 0:01:28.6]}
22. Ba3 {[%clk 0:02:05.2]} 22... Bxb4 {[%clk 0:01:27.4]} 23. Bxb4 {[%clk
0:02:07.1]} 23... Ra8 {[%clk 0:01:27.5]} 24. Kf2 {[%clk 0:02:07.2]} 24... Ra2+
{[%clk 0:01:25.4]} 25. Be2 {[%clk 0:02:07.9]} 25... Nb6 {[%clk 0:01:25.3]} 26.
Ke3 {[%clk 0:02:06.2]} 26... Bc6 {[%clk 0:01:12.8]} 27. Rb1 {[%clk 0:02:01.9]}
27... Ke8 {[%clk 0:00:55.4]} 28. Kf2 {[%clk 0:01:49.9]} 28... Kd7 {[%clk
0:00:51.9]} 29. g3 {[%clk 0:01:46.8]} 29... Ba4 {[%clk 0:00:43.5]} 30. Ke1
{[%clk 0:01:39.9]} 30... Bb3 {[%clk 0:00:42.3]} 31. h4 {[%clk 0:01:21.6]} 31...
Nd5 {[%clk 0:00:42]} 32. Rc1 {[%clk 0:01:23.1]} 32... Kc6 {[%clk 0:00:32.3]} 33.
Bf8 {[%clk 0:01:18.5]} 33... g6 {[%clk 0:00:32.5]} 34. Bh6 {[%clk 0:01:19.5]}
34... Kb5 {[%clk 0:00:26.1]} 35. Bd2 {[%clk 0:01:21.1]} 35... Ka4 {[%clk
0:00:21.4]} 36. g4 {[%clk 0:01:22.6]} 36... Ka3 {[%clk 0:00:20.9]} 37. f4 {[%clk
0:01:24.1]} 37... Kb2 {[%clk 0:00:21]} 38. Bf3 {[%clk 0:01:18.7]} 38... Ra8
{[%clk 0:00:20.1]} 39. f5 {[%clk 0:01:19.6]} 39... gxf5 {[%clk 0:00:20.4]} 40.
gxf5 {[%clk 0:01:20.9]} 40... Rg8 {[%clk 0:00:20.8]} 41. fxe6 {[%clk 0:01:17.7]}
41... Rg1+ {[%clk 0:00:11.1]} 42. Kf2 {[%clk 0:01:18.8]} 42... Rxc1 {[%clk
0:00:11.6]} 43. Bxc1+ {[%clk 0:01:20.7]} 43... Kxc1 {[%clk 0:00:12.4]} 44. Bxd5
{[%clk 0:01:22.6]} 1-0

[Event "*** Titled Tuesday 3|2 Blitz"]
[Site "Chess.com"]
[Date "2015.08.04"]
[Round "1"]
[White "mortalbovine"]
[Black "Viaje"]
[Result "0-1"]
[WhiteElo "1630"]
[BlackElo "2249"]
[TimeControl "180+2"]
[EndTime "11:38:25 PDT"]
[Termination "Viaje won by resignation"]

1. d4 {[%clk 0:03:00.4]} 1... Nf6 {[%clk 0:02:59.7]} 2. c4 {[%clk 0:02:56.2]}
2... c5 {[%clk 0:03:00.2]} 3. d5 {[%clk 0:02:51.4]} 3... b5 {[%clk 0:03:01.2]}
4. cxb5 {[%clk 0:02:51.7]} 4... a6 {[%clk 0:03:02.2]} 5. bxa6 {[%clk 0:02:50.3]}
5... g6 {[%clk 0:03:03.1]} 6. Nc3 {[%clk 0:02:40.9]} 6... Bg7 {[%clk 0:03:03.6]}
7. e4 {[%clk 0:02:34.3]} 7... O-O {[%clk 0:03:04]} 8. e5 {[%clk 0:02:24.2]} 8...
Ne8 {[%clk 0:03:04.6]} 9. f4 {[%clk 0:02:22]} 9... d6 {[%clk 0:03:04.5]} 10. Nf3
{[%clk 0:02:20.9]} 10... Nc7 {[%clk 0:03:05]} 11. Bc4 {[%clk 0:02:13.2]} 11...
Nd7 {[%clk 0:03:01.9]} 12. O-O {[%clk 0:01:59.2]} 12... Bxa6 {[%clk 0:02:56.5]}
13. Bxa6 {[%clk 0:01:58.4]} 13... Rxa6 {[%clk 0:02:58.4]} 14. Re1 {[%clk
0:01:55.5]} 14... Qa8 {[%clk 0:02:49.2]} 15. e6 {[%clk 0:01:49.1]} 15... fxe6
{[%clk 0:02:37.3]} 16. dxe6 {[%clk 0:01:51]} 16... Nb6 {[%clk 0:02:38.1]} 17.
Be3 {[%clk 0:01:26.3]} 17... Nbd5 {[%clk 0:02:27.6]} 18. Nxd5 {[%clk 0:01:21.4]}
18... Nxd5 {[%clk 0:02:28.3]} 19. Qd2 {[%clk 0:01:06.1]} 19... Nxe3 {[%clk
0:02:24.7]} 20. Qxe3 {[%clk 0:01:04.8]} 20... Rxa2 {[%clk 0:02:20.5]} 21. Rxa2
{[%clk 0:01:02.6]} 21... Qxa2 {[%clk 0:02:22.4]} 22. b3 {[%clk 0:00:54.3]} 22...
Rb8 {[%clk 0:02:12.7]} 23. Re2 {[%clk 0:00:43.2]} 23... Qxb3 {[%clk 0:02:08.8]}
24. Qxb3 {[%clk 0:00:42.1]} 24... Rxb3 {[%clk 0:02:10.7]} 25. Ra2 {[%clk
0:00:36.2]} 25... Bf6 {[%clk 0:02:08.7]} 26. Ra8+ {[%clk 0:00:32.1]} 26... Kg7
{[%clk 0:02:10]} 27. Kf2 {[%clk 0:00:29.2]} 27... c4 {[%clk 0:02:09.9]} 28. g4
{[%clk 0:00:27.1]} 28... Bb2 {[%clk 0:01:19.4]} 29. Re8 {[%clk 0:00:24.1]} 29...
Rb7 {[%clk 0:01:17.4]} 30. Rc8 {[%clk 0:00:21.9]} 30... c3 {[%clk 0:01:17.6]}
31. g5 {[%clk 0:00:22.5]} 31... Ba1 {[%clk 0:01:11.7]} 32. Ne1 {[%clk
0:00:22.3]} 32... h6 {[%clk 0:01:11.1]} 33. gxh6+ {[%clk 0:00:20.8]} 33... Kxh6
{[%clk 0:01:13]} 34. Nc2 {[%clk 0:00:21.8]} 34... Rb2 {[%clk 0:01:13.3]} 35.
Rxc3 {[%clk 0:00:18.5]} 35... Ra2 {[%clk 0:01:13.2]} 36. Rc4 {[%clk 0:00:18]}
36... Bf6 {[%clk 0:01:13.4]} 37. Kf3 {[%clk 0:00:18.6]} 37... d5 {[%clk
0:01:08]} 38. Rc8 {[%clk 0:00:19.2]} 38... d4 {[%clk 0:01:07.4]} 39. Ne1 {[%clk
0:00:19.1]} 39... Rxh2 {[%clk 0:01:06.6]} 40. Nd3 {[%clk 0:00:19.9]} 40... Rh3+
{[%clk 0:01:07.1]} 41. Ke4 {[%clk 0:00:21.1]} 41... Re3+ {[%clk 0:01:07.5]} 42.
Kd5 {[%clk 0:00:21.2]} 42... Rxd3 {[%clk 0:01:08.6]} 43. Rg8 {[%clk 0:00:21]}
43... Rf3 {[%clk 0:01:07.5]} 44. f5 {[%clk 0:00:20.9]} 44... Rxf5+ {[%clk
0:01:07.9]} 45. Kc4 {[%clk 0:00:22]} 45... Rf4 {[%clk 0:01:06.5]} 46. Kd3 {[%clk
0:00:22.6]} 46... Rf3+ {[%clk 0:01:07.3]} 47. Ke4 {[%clk 0:00:23.7]} 47... Re3+
{[%clk 0:01:07.7]} 48. Kd5 {[%clk 0:00:24.4]} 48... d3 {[%clk 0:01:08.6]} 49.
Rf8 {[%clk 0:00:25.4]} 49... Kg7 {[%clk 0:01:08.8]} 50. Ra8 {[%clk 0:00:24.5]}
50... d2 {[%clk 0:01:09.3]} 0-1